bitfinex/quotes_BTCUSD_20220111
["timestamp","ask_amount","ask_price","bid_price","bid_amount"]
[1641873880778,0.06205584,42342.0,42340.0,0.32330575]
[1641873880979,0.05905584,42342.0,42338.0,0.00072023]
[1641873881382,0.41527907,42343.0,42338.0,0.00072023]
[1641873881679,0.41527907,42343.0,42338.0,2.47250136]
[1641873881978,0.41527906,42343.0,42339.0,0.33637835]
[1641873882379,0.41527906,42343.0,42340.0,0.27859591]
[1641873882623,0.41527906,42343.0,42342.0,1.00101711]
[1641873882822,0.41527906,42343.0,42342.0,0.45101711]
[1641873883023,0.41527908,42343.0,42342.0,0.45101711]
[1641873883422,0.41527908,42343.0,42342.0,0.78503491]
[1641873883624,0.41527908,42343.0,42342.0,0.45101711]
[1641873883827,0.41527908,42343.0,42342.0,0.53601711]
[1641873884225,0.41482319,42343.0,42342.0,0.53601711]
[1641873885026,0.41482319,42343.0,42342.0,0.45101711]
[1641873885226,0.41482319,42343.0,42340.0,0.27859591]
[1641873885427,0.46482319,42343.0,42339.0,0.00072023]
[1641873885828,0.46582319,42343.0,42340.0,0.053]
[1641873886278,0.44082319,42343.0,42340.0,0.053]
[1641873886474,0.32096875,42342.0,42340.0,0.053]
[1641873887273,0.32096875,42342.0,42339.0,0.00072023]
[1641873887476,0.43982319,42343.0,42339.0,0.00072023]
[1641873887673,0.43982319,42343.0,42339.0,0.04372023]
[1641873887873,0.41527907,42343.0,42339.0,0.04372022]
[1641873888975,0.71063045,42343.0,42339.0,0.00072022]
[1641873889174,0.41527907,42343.0,42339.0,0.00072022]
[1641873889375,0.41527907,42343.0,42339.0,0.39340301]
[1641873889775,0.41827907,42343.0,42339.0,0.42340301]
[1641873890223,0.41827907,42343.0,42339.0,0.03072022]
[1641873890426,0.41827907,42343.0,42340.0,0.31497133]
[1641873890627,0.41827907,42343.0,42340.0,0.37526817]
[1641873890825,0.41827907,42343.0,42341.0,2.53453094]
[1641873891025,0.41527907,42343.0,42341.0,2.58183094]
[1641873891426,0.41482319,42343.0,42342.0,1.48746547]
[1641873892228,0.41482319,42343.0,42342.0,1.54650747]
[1641873892828,0.41482319,42343.0,42342.0,0.98457952]
[1641873893028,0.41482319,42343.0,42342.0,1.32183573]
[1641873893777,0.41482319,42343.0,42342.0,1.35383573]
[1641873894972,0.41464638,42343.0,42342.0,2.22183573]
[1641873895175,0.41464638,42343.0,42342.0,1.32183573]
[1641873895774,0.41464638,42343.0,42342.0,1.95089177]
[1641873895972,0.00045589,42345.0,42343.0,1.35]
[1641873896172,0.00045589,42345.0,42342.0,1.95089177]
[1641873896173,0.00045589,42345.0,42344.0,1.58204374]
[1641873896373,0.00045589,42345.0,42344.0,1.58327102]
[1641873896572,0.00045589,42345.0,42344.0,1.63057102]
[1641873897376,0.0160684,42346.0,42345.0,1.35]
[1641873897623,0.0160684,42346.0,42345.0,1.80736073]
[1641873898425,0.0160684,42346.0,42345.0,2.96603326]
[1641873899524,0.0160684,42346.0,42345.0,2.55597253]
[1641873899723,0.01592802,42346.0,42345.0,2.61597253]
[1641873899923,0.01578764,42346.0,42345.0,2.61597253]
[1641873900124,0.01578764,42346.0,42345.0,0.1073]
[1641873900324,0.01564726,42346.0,42345.0,0.1073]
[1641873900525,0.01550688,42346.0,42345.0,0.1073]
[1641873900727,0.01550688,42346.0,42345.0,0.69491813]
[1641873900925,0.0153665,42346.0,42345.0,0.69491813]
[1641873901127,0.01522612,42346.0,42345.0,0.69491813]
[1641873901377,0.01508574,42346.0,42345.0,1.01530341]
[1641873901576,0.01494536,42346.0,42345.0,0.42948149]
[1641873901777,0.01494536,42346.0,42345.0,0.42148149]
[1641873901976,0.000444,42353.0,42346.0,1.425]
[1641873902177,0.00039082,42348.0,42347.0,1.73667764]
[1641873902375,0.00039082,42348.0,42347.0,1.70341793]
[1641873902675,0.00025044,42348.0,42347.0,1.80341793]
[1641873902877,0.00011006,42348.0,42347.0,2.27874391]
[1641873903078,0.00041368,42353.0,42348.0,1.35]
[1641873903275,0.00013292,42353.0,42351.0,0.39112707]
[1641873903477,0.00099254,42354.0,42353.0,1.35]
[1641873903675,0.00085216,42354.0,42353.0,1.3973]
[1641873904075,0.41885216,42359.0,42353.0,1.3973]
[1641873904274,0.41885216,42359.0,42354.0,0.32704712]
[1641873904476,0.41885216,42359.0,42355.0,0.106324]
[1641873905125,0.41885216,42359.0,42358.0,0.3271221]
[1641873905728,0.39385216,42359.0,42358.0,0.6571221]
[1641873905927,0.39385216,42359.0,42358.0,0.3571221]
[1641873906827,0.39385216,42359.0,42358.0,0.77410655]
[1641873907328,0.39385216,42359.0,42354.0,0.059025]
[1641873907528,0.39385216,42359.0,42355.0,0.0473]
[1641873908128,0.39437926,42359.0,42355.0,0.0473]
[1641873908530,0.39437926,42359.0,42355.0,0.32371527]
[1641873909775,0.39437926,42359.0,42355.0,0.1153]
[1641873909976,0.36937926,42359.0,42355.0,0.1153]
[1641873910175,0.36687926,42359.0,42355.0,0.1153]
[1641873910578,0.35687926,42359.0,42355.0,0.1153]
[1641873910778,0.35687926,42359.0,42358.0,0.33254677]
[1641873911378,0.35687926,42359.0,42355.0,0.106324]
[1641873911780,0.35635216,42359.0,42358.0,0.071]
[1641873912526,0.35621178,42359.0,42358.0,0.071]
[1641873912727,0.3560714,42359.0,42358.0,0.071]
[1641873913128,0.3560714,42359.0,42357.0,0.31375014]
[1641873913328,0.3560714,42359.0,42355.0,0.165348]
[1641873913532,0.3310714,42359.0,42355.0,0.165348]
[1641873913734,0.3310714,42359.0,42357.0,0.07]
[1641873914133,0.33150858,42359.0,42357.0,0.07]
[1641873914536,0.33150858,42359.0,42358.0,0.25873904]
[1641873914735,0.33150858,42359.0,42357.0,0.07]
[1641873915135,0.33150858,42359.0,42355.0,0.0473]
[1641873915335,0.3310714,42359.0,42355.0,0.0473]
[1641873915539,0.3160714,42359.0,42355.0,0.0473]
[1641873915735,0.3160714,42359.0,42355.0,0.1163]
[1641873916139,0.31589459,42359.0,42355.0,0.1163]
[1641873916578,0.31634643,42359.0,42355.0,0.1163]
[1641873916976,0.31634643,42359.0,42357.0,0.33020885]
[1641873917376,0.31634643,42359.0,42355.0,0.069]
[1641873917577,0.31634643,42359.0,42354.0,0.059024]
[1641873917877,0.31634643,42359.0,42357.0,0.071]
[1641873917878,0.31589459,42359.0,42357.0,0.071]
[1641873918678,0.6603289,42359.0,42357.0,0.071]
[1641873918876,0.31589459,42359.0,42357.0,0.071]
[1641873919077,0.31589459,42359.0,42354.0,0.33570828]
[1641873919879,0.65838912,42359.0,42354.0,0.34668428]
[1641873920123,0.65883873,42359.0,42354.0,0.34668428]
[1641873920325,0.3163442,42359.0,42354.0,0.34668428]
[1641873921024,0.3163442,42359.0,42354.0,0.27668428]
[1641873921226,0.2913442,42359.0,42354.0,0.27668428]
[1641873921828,0.2933442,42359.0,42354.0,0.34768428]
[1641873922625,0.2933445,42359.0,42354.0,0.34768428]
[1641873923026,0.2913445,42359.0,42354.0,0.27668428]
[1641873923880,0.2933445,42359.0,42354.0,0.071]
[1641873925279,0.2933445,42359.0,42349.0,0.58654712]
[1641873925280,0.05903309,42358.0,42349.0,0.58654712]
[1641873925576,0.55942092,42359.0,42349.0,0.58654712]
[1641873925778,0.002,42358.0,42349.0,0.64454712]
[1641873925975,0.33956133,42355.0,42349.0,0.95986152]
[1641873926178,0.33956133,42355.0,42349.0,0.3733144]
[1641873926376,0.38956133,42355.0,42349.0,0.3733144]
[1641873926579,0.05903973,42354.0,42349.0,0.058]
[1641873926980,0.05903973,42354.0,42345.0,0.58654712]
[1641873927379,0.33463067,42354.0,42345.0,0.58654712]
[1641873927626,0.05904755,42350.0,42344.0,0.91965696]
[1641873927826,0.05904755,42350.0,42345.0,0.042]
[1641873928628,0.05949736,42350.0,42345.0,0.042]
[1641873929029,0.00044981,42350.0,42345.0,0.042]
[1641873929629,0.00044981,42350.0,42344.0,0.33310984]
[1641873929630,0.27583282,42348.0,42344.0,0.33310984]
[1641873929832,0.27583282,42348.0,42345.0,0.069]
[1641873930133,0.32583282,42348.0,42345.0,0.069]
[1641873930632,0.00244983,42350.0,42345.0,0.069]
[1641873930831,0.00228935,42350.0,42345.0,0.069]
[1641873931131,0.00044982,42350.0,42343.0,0.58654712]
[1641873931576,0.00044982,42350.0,42346.0,0.29436236]
[1641873931881,0.11954978,42350.0,42343.0,0.62154712]
[1641873932081,0.00125552,42348.0,42343.0,0.62154712]
[1641873932275,0.05711286,42349.0,42343.0,0.62154712]
[1641873932574,0.05711286,42349.0,42343.0,0.035]
[1641873932774,0.34427416,42344.0,42343.0,0.035]
[1641873933177,0.39427416,42344.0,42340.0,0.58654712]
[1641873933375,0.39427416,42344.0,42341.0,0.0007208]
[1641873933578,0.05,42344.0,42341.0,0.0007208]
[1641873933878,0.003,42344.0,42341.0,0.0007208]
[1641873934681,0.003,42344.0,42342.0,0.29866578]
[1641873934880,0.003,42344.0,42341.0,0.58654712]
[1641873935131,0.3496779,42347.0,42341.0,0.58654712]
[1641873935331,0.40872633,42347.0,42341.0,0.58654712]
[1641873935730,0.40872633,42347.0,42342.0,0.00043647]
[1641873935931,0.41172633,42347.0,42342.0,0.00043647]
[1641873936533,0.11204843,42347.0,42342.0,0.00043647]
[1641873936832,0.03394422,42346.0,42342.0,0.00043647]
[1641873937040,0.05,42343.0,42341.0,0.58654712]
[1641873937232,0.05,42343.0,42341.0,0.48664712]
[1641873937233,1.04470935,42342.0,42341.0,0.48664712]
[1641873937431,1.46503735,42342.0,42337.0,0.48664712]
[1641873937631,0.00129631,42339.0,42337.0,0.48664712]
[1641873937832,0.28968581,42338.0,42337.0,0.48664712]
[1641873938034,0.33968581,42338.0,42334.0,0.005]
[1641873938233,0.33968581,42338.0,42331.0,0.32533549]
[1641873938432,0.05906431,42336.0,42330.0,0.42]
[1641873938634,0.05906431,42336.0,42330.0,0.005]
[1641873938882,0.00122737,42333.0,42330.0,0.42]
[1641873939281,0.31504094,42333.0,42330.0,0.42]
[1641873939482,0.00122737,42333.0,42330.0,0.42]
[1641873939684,0.05,42334.0,42332.0,0.005]
[1641873939882,0.005,42333.0,42332.0,0.005]
[1641873940783,0.00161083,42333.0,42332.0,0.005]
[1641873940985,0.06027572,42337.0,42332.0,0.005]
[1641873941382,0.29483442,42336.0,42332.0,0.005]
[1641873941582,0.05,42336.0,42332.0,0.005]
[1641873941782,0.056,42336.0,42332.0,0.00585238]
[1641873942628,0.006,42336.0,42332.0,0.00585238]
[1641873942827,0.006,42336.0,42332.0,0.00085238]
[1641873943027,0.006,42336.0,42332.0,0.00085239]
[1641873943227,0.00120994,42337.0,42332.0,0.00085239]
[1641873943428,0.05907203,42335.0,42332.0,0.00085239]
[1641873943627,0.370328,42334.0,42332.0,0.00085239]
[1641873943828,0.60962025,42333.0,42332.0,0.00085239]
[1641873944028,0.97994825,42333.0,42332.0,0.00085239]
[1641873944228,0.97994825,42333.0,42331.0,0.00085239]
[1641873944429,0.370328,42332.0,42331.0,0.00085239]
[1641873944627,0.82174086,42332.0,42331.0,0.00085239]
[1641873945530,0.05907629,42331.0,42329.0,0.00569702]
[1641873945929,0.05907629,42331.0,42329.0,0.00069702]
[1641873946678,0.42506967,42329.0,42328.0,0.00069704]
[1641873946880,0.47506967,42329.0,42328.0,0.00069704]
[1641873947480,0.57506967,42329.0,42328.0,0.00069704]
[1641873947679,0.47506967,42329.0,42328.0,0.00069704]
[1641873947880,0.58306967,42329.0,42328.0,0.00069704]
[1641873948079,1.43110846,42329.0,42328.0,0.00069704]
[1641873948679,1.43110846,42329.0,42326.0,0.00069705]
[1641873948879,0.82306967,42329.0,42326.0,0.00069705]
[1641873949079,0.81506967,42329.0,42326.0,0.00142179]
[1641873949279,0.81506967,42329.0,42326.0,0.00072474]
[1641873949880,0.82306967,42329.0,42326.0,0.00072474]
[1641873950329,0.82306967,42329.0,42325.0,0.00072475]
[1641873950537,0.370328,42328.0,42325.0,0.00072475]
[1641873950729,0.77306967,42329.0,42325.0,0.00072475]
[1641873951128,0.76506967,42329.0,42325.0,0.00072475]
[1641873951337,0.76506967,42329.0,42325.0,0.0014495]
[1641873951528,0.76506967,42329.0,42325.0,0.00072475]
[1641873951928,0.29791808,42326.0,42325.0,0.00072475]
[1641873952732,0.33675438,42325.0,42323.0,0.00572166]
[1641873953783,0.33675438,42325.0,42322.0,0.42072]
[1641873953977,0.34075438,42325.0,42322.0,0.42072]
[1641873954379,0.00127185,42323.0,42322.0,0.42072]
[1641873954579,2.07659985,42323.0,42322.0,0.42072]
[1641873954779,2.07659985,42323.0,42322.0,0.00072]
[1641873954780,2.12659985,42323.0,42322.0,0.00072]
[1641873954981,2.27659985,42323.0,42320.0,0.00072002]
[1641873955180,1.255,42321.0,42320.0,0.00072002]
[1641873955382,1.62660299,42321.0,42320.0,0.00072002]
[1641873955580,1.72660299,42321.0,42320.0,0.00072002]
[1641873955781,1.77660299,42321.0,42320.0,0.00072002]
[1641873955982,1.83560299,42321.0,42320.0,0.00072002]
[1641873956282,1.83560299,42321.0,42318.0,0.00072004]
[1641873956484,0.58589686,42319.0,42318.0,0.00072004]
[1641873956682,1.29388892,42319.0,42318.0,0.00072004]
[1641873957529,1.29388892,42319.0,42316.0,0.00072087]
[1641873957729,0.73786557,42318.0,42316.0,0.00072087]
[1641873957933,0.29816206,42317.0,42312.0,0.31145999]
[1641873958132,0.33644408,42316.0,42311.0,0.42]
[1641873959431,0.25813809,42312.0,42311.0,0.42]
[1641873959730,0.33644408,42316.0,42311.0,0.42]
[1641873959930,0.003,42312.0,42311.0,0.42]
[1641873960541,0.003,42312.0,42311.0,0.67]
[1641873960730,0.003,42312.0,42311.0,0.72790993]
[1641873960931,0.003,42312.0,42311.0,0.42]
[1641873961132,0.00121119,42315.0,42311.0,0.92]
[1641873961386,0.25829227,42316.0,42311.0,0.42]
[1641873961883,0.26529227,42316.0,42311.0,0.42]
[1641873962281,0.26529227,42316.0,42311.0,0.42085264]
[1641873963383,0.25829227,42316.0,42311.0,0.42085264]
[1641873964083,0.26529227,42316.0,42311.0,0.46285264]
[1641873965130,0.26529227,42316.0,42311.0,0.42085264]
[1641873965131,0.00127748,42315.0,42311.0,0.42085264]
[1641873965733,0.00127748,42315.0,42311.0,0.42154927]
[1641873965931,0.00627748,42315.0,42311.0,0.46469663]
[1641873966533,0.00627748,42315.0,42311.0,0.73835921]
[1641873966731,0.00627748,42315.0,42311.0,0.46469663]
[1641873967132,0.00627748,42315.0,42311.0,0.42069663]
[1641873967332,0.00127748,42315.0,42311.0,0.42069663]
[1641873967533,0.24127748,42315.0,42311.0,0.42069663]
[1641873967933,0.24627748,42315.0,42311.0,0.46469663]
[1641873968133,0.24627748,42315.0,42311.0,0.46539326]
[1641873968337,0.24627748,42315.0,42311.0,0.46469663]
[1641873968534,0.30740725,42314.0,42311.0,0.46469663]
[1641873969186,0.30740725,42314.0,42311.0,0.42069663]
[1641873969487,0.30740725,42314.0,42311.0,0.42]
[1641873969887,0.3539244,42313.0,42311.0,0.42]
[1641873970289,0.29752152,42312.0,42311.0,0.42]
[1641873971291,2.02284952,42312.0,42311.0,0.42]
[1641873971590,2.12409556,42312.0,42311.0,0.42]
[1641873971987,2.13209556,42312.0,42311.0,0.42]
[1641873972187,2.77260229,42312.0,42311.0,0.42]
[1641873972835,2.77260229,42312.0,42309.0,0.00072455]
[1641873972836,2.87260229,42312.0,42309.0,0.00072455]
[1641873973037,1.25626234,42310.0,42309.0,0.0007197]
[1641873973236,1.56160999,42310.0,42309.0,0.0007197]
[1641873973540,2.03193799,42310.0,42309.0,0.0007197]
[1641873973936,2.04093799,42310.0,42309.0,0.0007197]
[1641873974336,2.04093799,42310.0,42307.0,0.00071972]
[1641873974538,0.26999867,42308.0,42307.0,0.00071972]
[1641873974737,0.15,42309.0,42307.0,0.00071972]
[1641873975535,0.15,42309.0,42306.0,0.00071974]
[1641873975736,0.49093489,42309.0,42306.0,0.00071974]
[1641873975938,0.39593489,42309.0,42306.0,0.00071974]
[1641873976138,0.49593489,42309.0,42306.0,0.00071974]
[1641873976582,0.370328,42308.0,42305.0,0.00072001]
[1641873976781,0.49593489,42309.0,42305.0,0.00072001]
[1641873976782,0.30230643,42307.0,42305.0,0.00072001]
[1641873977181,0.46268006,42306.0,42305.0,0.00072001]
[1641873977784,0.46268006,42306.0,42303.0,0.00072058]
[1641873977981,0.46868006,42306.0,42303.0,0.00072058]
[1641873978580,0.56868006,42306.0,42303.0,0.00072058]
[1641873978980,0.56868006,42306.0,42304.0,0.24160356]
[1641873979181,0.56268006,42306.0,42304.0,0.24160356]
[1641873979382,0.56268006,42306.0,42302.0,0.00072059]
[1641873979683,0.46268006,42306.0,42302.0,0.00072059]
[1641873980127,0.46868006,42306.0,42302.0,0.00144116]
[1641873980327,0.46868006,42306.0,42302.0,0.00072057]
[1641873980529,0.79374419,42306.0,42302.0,0.00072057]
[1641873981228,0.78774419,42306.0,42302.0,0.00072057]
[1641873981429,0.78774419,42306.0,42302.0,0.00072048]
[1641873981627,0.83774419,42306.0,42302.0,0.00072048]
[1641873981828,0.46268006,42306.0,42302.0,0.00072048]
[1641873982030,0.006,42306.0,42302.0,0.00072048]
[1641873982929,0.006,42306.0,42303.0,0.33858787]
[1641873983230,0.006,42306.0,42304.0,0.0473]
[1641873983882,0.00128194,42315.0,42304.0,0.0473]
[1641873984087,0.003,42306.0,42304.0,0.0773]
[1641873984281,0.67380407,42313.0,42305.0,0.85]
[1641873984581,1.255,42312.0,42304.0,0.0773]
[1641873984981,1.255,42312.0,42307.0,0.00072044]
[1641873985182,1.55019847,42312.0,42307.0,0.00072044]
[1641873985783,0.00121327,42308.0,42307.0,0.00072044]
[1641873985983,0.00121327,42308.0,42307.0,0.01772044]
[1641873987183,0.00121327,42308.0,42307.0,0.00072044]
[1641873987385,0.52478439,42310.0,42305.0,0.00072045]
[1641873987829,0.76762077,42310.0,42305.0,0.00072045]
[1641873988028,0.77736095,42310.0,42305.0,0.01972045]
[1641873988430,0.71878439,42310.0,42305.0,0.01972045]
[1641873988629,0.71878439,42310.0,42305.0,0.01972044]
[1641873989029,0.00124629,42307.0,42305.0,0.01972044]
[1641873989233,0.00836657,42307.0,42305.0,0.00072044]
[1641873989832,0.00836657,42307.0,42304.0,0.00072046]
[1641873990030,0.01036657,42307.0,42305.0,0.03]
[1641873990632,0.00912028,42307.0,42305.0,0.03]
[1641873991292,0.00912028,42307.0,42306.0,0.33007586]
[1641873991293,0.00712028,42307.0,42306.0,0.33007586]
[1641873991783,0.00712028,42307.0,42304.0,0.00072046]
[1641873991981,0.36904139,42306.0,42304.0,0.00072046]
[1641873993482,0.36904139,42306.0,42303.0,0.00072048]
[1641873994183,1.62804139,42306.0,42303.0,0.05072048]
[1641873994485,1.255,42304.0,42303.0,0.05072048]
[1641873994883,0.37304139,42306.0,42303.0,0.05]
[1641873995332,0.36904139,42306.0,42302.0,0.00072048]
[1641873996232,0.37304139,42306.0,42302.0,0.05072048]
[1641873997035,0.37304139,42306.0,42302.0,0.05072049]
[1641873997235,0.36904139,42306.0,42302.0,0.59090862]
[1641873998035,0.37204139,42306.0,42303.0,0.59018813]
[1641873998984,1.255,42305.0,42303.0,0.59018813]
[1641873999284,0.36904139,42306.0,42303.0,0.59018813]
[1641873999586,1.72404139,42306.0,42304.0,0.59018813]
[1641873999783,1.77404139,42306.0,42304.0,0.59018813]
[1641873999983,1.77704139,42306.0,42304.0,0.63318813]
[1641874000585,1.77704139,42306.0,42304.0,0.043]
[1641874000886,1.67316139,42306.0,42304.0,0.043]
[1641874001485,1.72316139,42306.0,42304.0,0.043]
[1641874001687,1.255,42305.0,42304.0,0.043]
[1641874001889,1.255,42305.0,42303.0,0.00072048]
[1641874002089,1.355,42305.0,42304.0,0.026]
[1641874002286,1.775328,42305.0,42304.0,0.026]
[1641874002529,1.405,42305.0,42304.0,0.026]
[1641874002730,1.355,42305.0,42304.0,0.026]
[1641874002931,1.455,42305.0,42304.0,0.026]
[1641874003130,0.31816139,42306.0,42304.0,0.026]
[1641874003330,0.31516139,42306.0,42302.0,0.00072049]
[1641874003529,0.41516139,42306.0,42302.0,0.00072049]
[1641874004229,0.66145914,42306.0,42302.0,0.62690862]
[1641874004632,0.41916139,42306.0,42302.0,0.62690862]
[1641874005029,1.255,42305.0,42302.0,0.62690862]
[1641874005230,1.255,42305.0,42302.0,0.59090862]
[1641874005632,0.31121826,42305.0,42302.0,0.59090862]
[1641874005834,0.36121826,42305.0,42302.0,0.59090862]
[1641874006033,0.46621826,42305.0,42302.0,0.62590862]
[1641874006283,1.36,42305.0,42302.0,0.03572049]
[1641874006482,1.41,42305.0,42302.0,0.03572049]
[1641874006683,0.105,42305.0,42302.0,0.035]
[1641874006887,0.005,42305.0,42302.0,0.035]
[1641874007285,0.41516139,42306.0,42301.0,1.01490863]
[1641874007482,0.70282151,42306.0,42301.0,1.01490863]
[1641874008082,0.70982151,42306.0,42301.0,1.04890863]
[1641874008684,0.42216139,42306.0,42301.0,1.04890863]
[1641874008882,0.32216139,42306.0,42301.0,1.04890863]
[1641874009083,0.32216139,42306.0,42302.0,0.59018813]
[1641874009382,0.41516139,42306.0,42302.0,0.59018813]
[1641874010128,0.72726814,42306.0,42303.0,0.59018813]
[1641874011028,1.255,42305.0,42303.0,0.59018813]
[1641874011536,1.25623653,42304.0,42303.0,0.59018813]
[1641874011729,1.62656453,42304.0,42303.0,0.59018813]
[1641874011929,1.62656453,42304.0,42302.0,0.00072049]
[1641874011930,1.72656453,42304.0,42302.0,0.00072049]
[1641874012130,0.370328,42303.0,42302.0,0.00072049]
[1641874012329,1.675328,42303.0,42302.0,0.00072049]
[1641874012531,1.775328,42303.0,42302.0,0.00072049]
[1641874012729,1.775328,42303.0,42301.0,0.4247205]
[1641874012730,1.865708,42303.0,42301.0,0.4247205]
[1641874012929,2.30970561,42302.0,42301.0,0.4247205]
[1641874013129,2.40970561,42302.0,42301.0,0.4247205]
[1641874013785,2.40970561,42302.0,42301.0,0.4207205]
[1641874013982,1.255,42300.0,42299.0,0.00072052]
[1641874014282,1.83575985,42300.0,42299.0,0.00072052]
[1641874014481,1.93305985,42300.0,42299.0,0.00072052]
[1641874015085,1.93305985,42300.0,42297.0,0.00072054]
[1641874015086,2.25532902,42300.0,42297.0,0.00072054]
[1641874015282,2.22662028,42298.0,42297.0,0.00072054]
[1641874015487,2.40960056,42298.0,42297.0,0.00072054]
[1641874015683,2.52303056,42298.0,42297.0,0.00072054]
[1641874015883,2.49333372,42298.0,42297.0,0.00072054]
[1641874016083,2.50833372,42298.0,42297.0,0.00072054]
[1641874016281,2.50833372,42298.0,42295.0,0.00072057]
[1641874016488,0.072583,42292.0,42287.0,0.5909087]
[1641874016683,0.072583,42292.0,42285.0,0.002883]
[1641874016684,1.57158421,42288.0,42285.0,0.002883]
[1641874016883,0.00129209,42283.0,42281.0,0.004]
[1641874017084,0.0473,42282.0,42281.0,0.004]
[1641874017283,1.672628,42282.0,42281.0,0.004]
[1641874017531,0.567628,42282.0,42281.0,0.004]
[1641874017735,0.617628,42282.0,42281.0,0.004]
[1641874018134,0.636628,42282.0,42276.0,0.76309607]
[1641874018333,0.636628,42282.0,42269.0,0.271159]
[1641874018532,0.2663,42282.0,42269.0,0.271159]
[1641874018735,0.2663,42282.0,42271.0,0.00123339]
[1641874018736,0.019,42282.0,42271.0,0.00123339]
[1641874018935,0.019,42282.0,42275.0,0.00128246]
[1641874019135,0.019,42282.0,42280.0,0.30140506]
[1641874019335,0.24,42288.0,42280.0,0.30140506]
[1641874019637,0.39725392,42285.0,42280.0,0.30140506]
[1641874019839,0.39725392,42285.0,42279.0,0.00085231]
[1641874020037,0.37745229,42284.0,42279.0,0.00085231]
[1641874020340,0.00712429,42284.0,42279.0,0.00085231]
[1641874020536,0.370328,42283.0,42279.0,0.00085231]
[1641874020737,0.00712429,42284.0,42279.0,0.00085231]
[1641874020938,0.34286764,42282.0,42279.0,0.00085231]
[1641874021386,0.00712429,42284.0,42279.0,0.00085231]
[1641874022183,0.01012429,42284.0,42279.0,0.00170462]
[1641874022385,0.30564088,42281.0,42279.0,0.00085231]
[1641874022585,0.01012429,42284.0,42279.0,0.00085231]
[1641874022785,1.26512429,42284.0,42279.0,0.00085231]
[1641874023185,1.36512429,42284.0,42279.0,0.00085231]
[1641874023387,1.36512429,42284.0,42279.0,0.00164228]
[1641874023586,0.49984023,42284.0,42279.0,0.00078997]
[1641874023785,0.11012429,42284.0,42279.0,0.00078997]
[1641874023985,0.10712429,42284.0,42279.0,0.00078997]
[1641874024185,0.11612429,42284.0,42279.0,0.00878997]
[1641874024386,0.01612429,42284.0,42279.0,0.00878997]
[1641874024788,1.94920594,42283.0,42279.0,0.00869409]
[1641874025032,2.14920594,42283.0,42279.0,0.00869409]
[1641874025233,0.64535237,42282.0,42279.0,0.00869409]
[1641874025435,0.370328,42281.0,42279.0,0.00069409]
[1641874025736,0.37500241,42280.0,42279.0,0.00069409]
[1641874026033,0.89533041,42280.0,42279.0,0.009]
[1641874026233,0.69533041,42280.0,42279.0,0.009]
[1641874026433,0.01,42281.0,42279.0,0.009]
[1641874027435,0.31106323,42282.0,42278.0,0.00070507]
[1641874027736,1.96241683,42281.0,42278.0,0.00070507]
[1641874027932,2.06241683,42281.0,42278.0,0.00070507]
[1641874028133,2.16241683,42281.0,42278.0,0.00870507]
[1641874028335,1.825328,42281.0,42278.0,0.00872288]
[1641874028534,1.64283271,42279.0,42278.0,0.00872288]
[1641874028793,2.01316071,42279.0,42278.0,0.00872288]
[1641874029085,1.625328,42279.0,42278.0,0.00872288]
[1641874029285,1.625328,42279.0,42278.0,0.00072288]
[1641874029485,1.255,42279.0,42276.0,0.00072289]
[1641874030086,1.257,42279.0,42276.0,0.04172289]
[1641874030789,1.257,42279.0,42276.0,0.041]
[1641874030995,0.67481669,42278.0,42276.0,0.041]
[1641874031189,0.31483724,42277.0,42276.0,0.041]
[1641874031388,0.00128069,42278.0,42275.0,0.00072104]
[1641874031588,0.1,42277.0,42275.0,0.00072104]
[1641874031788,0.00128069,42278.0,42275.0,0.00072104]
[1641874031989,0.00128069,42278.0,42274.0,0.00071782]
[1641874032187,0.001,42277.0,42275.0,0.021]
[1641874032388,1.256,42277.0,42275.0,0.021]
[1641874032636,1.98084859,42276.0,42275.0,0.021]
[1641874032837,2.41673739,42276.0,42275.0,0.021]
[1641874033034,2.56673739,42276.0,42275.0,0.021]
[1641874033235,2.2612168,42276.0,42275.0,0.021]
[1641874033435,2.2612168,42276.0,42274.0,0.00071782]
[1641874033436,2.54044333,42276.0,42274.0,0.00071782]
[1641874033638,0.35138931,42275.0,42274.0,0.00071782]
[1641874033837,0.72171731,42275.0,42274.0,0.00071782]
[1641874034034,2.40486689,42275.0,42274.0,0.00071782]
[1641874034234,2.42787954,42275.0,42272.0,0.00071814]
[1641874034438,1.625328,42274.0,42272.0,0.00071814]
[1641874034637,1.825328,42274.0,42272.0,0.00071814]
[1641874035437,1.825328,42274.0,42271.0,0.00071873]
[1641874036037,1.857328,42274.0,42271.0,0.00071873]
[1641874036782,1.487,42274.0,42270.0,0.42071874]
[1641874036982,1.487,42274.0,42270.0,0.72039393]
[1641874037181,0.232,42274.0,42270.0,0.72039393]
[1641874037483,1.255,42273.0,42270.0,0.42071874]
[1641874037781,1.355,42273.0,42270.0,0.42143744]
[1641874037984,1.355,42273.0,42270.0,0.4207187]
[1641874037985,0.1,42273.0,42270.0,0.4207187]
[1641874038181,0.1,42273.0,42270.0,0.4257187]
[1641874038182,0.103,42273.0,42270.0,0.4257187]
[1641874038582,0.343,42273.0,42270.0,0.4257187]
[1641874038782,0.243,42273.0,42270.0,0.4257187]
[1641874039184,0.243,42273.0,42270.0,0.425]
[1641874040034,0.24,42273.0,42270.0,0.42]
[1641874040233,1.501,42273.0,42270.0,0.426]
[1641874040633,1.601,42273.0,42270.0,0.426]
[1641874040833,0.346,42273.0,42270.0,0.426]
[1641874041033,0.66437075,42273.0,42270.0,0.426]
[1641874041436,0.34,42273.0,42270.0,0.42]
[1641874041634,0.24,42273.0,42270.0,0.42]
[1641874042334,0.245,42273.0,42270.0,0.425]
[1641874043435,0.24,42273.0,42270.0,0.42]
[1641874043633,0.32980471,42272.0,42270.0,0.42]
[1641874044087,0.43280471,42272.0,42270.0,0.424]
[1641874044289,0.43280471,42272.0,42270.0,0.399]
[1641874045088,1.73780471,42272.0,42270.0,0.399]
[1641874045488,1.73780471,42272.0,42270.0,0.395]
[1641874045489,1.73480471,42272.0,42270.0,0.395]
[1641874045890,1.78480471,42272.0,42270.0,0.395]
[1641874046089,0.370328,42271.0,42270.0,0.401]
[1641874046489,0.470328,42271.0,42270.0,0.401]
[1641874047188,0.77141278,42271.0,42270.0,0.401]
[1641874047390,0.470328,42271.0,42270.0,0.395]
[1641874047635,0.76500093,42271.0,42270.0,0.395]
[1641874048035,2.02000093,42271.0,42270.0,0.395]